bitfinex/quotes_SOLUSD_20220302
["timestamp","ask_amount","ask_price","bid_price","bid_amount"]
[1646241617803,23.8438,102.07,101.98,109.75]
[1646241618004,23.8438,102.07,101.98,110.0]
[1646241619003,23.8438,102.07,101.98,124.7083]
[1646241620106,23.8438,102.07,101.98,127.25734003]
[1646241620307,15.22333628,102.09,102.0,98.02]
[1646241620506,15.22333628,102.09,102.01,74.39618844]
[1646241620708,15.22333628,102.09,102.01,74.64618844]
[1646241621208,36.44842011,102.09,102.01,24.4335]
[1646241621408,38.15038123,102.09,102.01,24.4335]
[1646241621608,57.85908123,102.09,101.97,41.847]
[1646241621806,57.85908123,102.09,101.98,24.9821]
[1646241621807,24.2639,102.08,101.98,24.9821]
[1646241622010,3.92,102.07,101.98,25.2321]
[1646241622210,26.84704495,102.07,101.98,75.31342053]
[1646241623013,14.7126,102.06,101.98,75.31342053]
[1646241623515,21.22508383,102.06,101.98,24.9821]
[1646241623732,24.55478137,102.06,101.97,23.2182]
[1646241623933,4.22153047,102.05,101.94,7.948]
[1646241624135,29.54785549,102.05,101.94,32.9187]
[1646241624334,1.70196112,102.04,101.94,32.9187]
[1646241624536,1.70196112,102.04,101.94,82.90289249]
[1646241625137,14.7185,102.02,101.94,82.90289249]
[1646241626143,14.7202,102.01,101.94,32.9187]
[1646241626340,1.70196112,102.02,101.94,32.9187]
[1646241626539,6.70196112,102.02,101.94,32.9187]
[1646241626940,3.922,102.01,101.94,32.9187]
[1646241627638,3.922,102.01,101.94,33.1687]
[1646241628040,14.7213,102.0,101.94,33.1687]
[1646241630544,14.7213,102.0,101.94,25.2207]
[1646241630945,14.7213,102.0,101.93,151.61011673]
[1646241630946,14.7213,102.0,101.93,101.044]
[1646241631346,14.7213,102.0,101.93,22.5952]
[1646241631545,3.922,101.99,101.9,23.8603]
[1646241631744,3.922,101.99,101.9,24.1103]
[1646241631745,14.9416582,101.98,101.9,24.1103]
[1646241631944,14.9416582,101.98,101.9,80.14389758]
[1646241631945,14.7246,101.98,101.9,80.14389758]
[1646241632146,28.4248,101.99,101.9,80.14389758]
[1646241632345,30.26827052,101.99,101.9,80.14389758]
[1646241632746,14.7259,101.97,101.9,23.8603]
[1646241633550,24.5028,101.99,101.9,23.8603]
[1646241633747,24.5028,101.99,101.9,73.9229135]
[1646241633949,24.5028,101.99,101.9,50.0626135]
[1646241634147,3.923,101.98,101.89,23.2126]
[1646241634547,5.62496112,101.98,101.89,23.2126]
[1646241634948,5.0,101.97,101.89,23.2126]
[1646241635548,3.924,101.96,101.89,23.4626]
[1646241636150,14.7286,101.95,101.89,23.4626]
[1646241636951,29.4466,101.97,101.89,23.4626]
[1646241637150,53.6594,101.97,101.89,23.4626]
[1646241638150,3.924,101.96,101.89,23.4626]
[1646241639352,24.4466,101.97,101.89,23.4626]
[1646241641156,24.4466,101.97,101.89,38.1854]
[1646241641562,24.4466,101.97,101.89,23.4626]
[1646241641962,24.4466,101.97,101.89,23.2126]
[1646241642158,43.0963,101.97,101.89,23.2126]
[1646241642358,39.1723,101.97,101.89,23.2126]
[1646241643259,14.7273,101.96,101.89,23.2126]
[1646241643459,30.07256112,101.97,101.88,24.3097]
[1646241643659,5.692,101.96,101.88,24.3097]
[1646241643861,3.924,101.95,101.87,82.1]
[1646241644363,1.70196112,101.94,101.87,82.1]
[1646241644760,1.70196112,101.94,101.87,82.35]
[1646241645163,14.7317,101.93,101.87,82.35]
[1646241645964,3.924,101.95,101.87,82.35]
[1646241646162,18.6537,101.95,101.87,82.35]
[1646241646363,68.3128,101.97,101.87,82.35]
[1646241646563,64.3888,101.97,101.87,82.35]
[1646241648166,14.7272,101.96,101.87,82.35]
[1646241648764,14.7272,101.96,101.87,104.9541]
[1646241649667,49.3139,101.97,101.87,217.6996]
[1646241651672,49.3139,101.97,101.87,276.3696]
[1646241652175,19.725,101.98,101.87,276.3696]
[1646241652476,3.924,101.99,101.9,228.81150435]
[1646241652678,3.923,102.01,101.9,229.06150435]
[1646241652878,3.923,102.01,101.91,23.0448]
[1646241653077,3.923,102.01,101.91,23.2948]
[1646241653676,18.6429,102.01,101.91,23.2948]
[1646241655677,14.7214,102.0,101.91,23.2948]
[1646241656280,3.923,101.99,101.91,23.2948]
[1646241657795,14.7214,102.0,101.91,23.2948]
[1646241657996,81.0121,102.02,101.91,38.0135]
[1646241658198,81.0121,102.02,101.91,147.7635]
[1646241661400,3.923,102.02,101.91,221.96590711]
[1646241661599,14.7164,102.04,101.93,156.69]
[1646241661899,14.7164,102.04,101.94,78.3062903]
[1646241662099,14.7164,102.04,101.94,78.5562903]
[1646241662501,14.7172,102.03,101.94,78.5562903]
[1646241663301,21.22508383,102.04,101.94,78.5562903]
[1646241663502,1.70196112,102.03,101.94,78.5562903]
[1646241664101,26.02586112,102.03,101.94,78.5562903]
[1646241665102,14.7185,102.02,101.94,78.5562903]
[1646241665507,28.2459,102.03,101.94,78.5562903]
[1646241665703,24.3239,102.03,101.94,78.5562903]
[1646241666805,24.3239,102.03,101.94,92.83533033]
[1646241667605,24.3239,102.03,101.94,151.50533033]
[1646241667806,26.9519,102.05,101.94,264.23993033]
[1646241668008,23.0299,102.05,101.94,281.14329741]
[1646241668206,23.0299,102.05,101.96,156.69]
[1646241668407,23.0299,102.05,101.96,168.67]
[1646241668606,23.0299,102.05,101.96,171.21904003]
[1646241669006,23.0299,102.05,101.96,185.92894003]
[1646241669209,23.0299,102.05,101.96,87.90894003]
[1646241669407,23.0299,102.05,101.96,185.92894003]
[1646241670611,23.0299,102.05,101.96,185.67894003]
[1646241671410,23.0299,102.05,101.96,14.27904003]
[1646241671610,23.0299,102.05,101.95,3.92]
[1646241672011,0.24451295,102.04,101.95,3.92]
[1646241672209,0.24451295,102.04,101.94,80.85533033]
[1646241672509,52.13898403,102.04,101.94,78.3062903]
[1646241672709,57.13898403,102.04,101.94,78.3062903]
[1646241672912,63.55998403,102.04,101.94,78.3062903]
[1646241673710,63.55998403,102.04,101.94,78.5562903]
[1646241674110,14.7187,102.02,101.94,78.5562903]
[1646241674610,63.55998403,102.04,101.94,78.3062903]
[1646241674811,112.62708403,102.04,101.94,78.3062903]
[1646241675614,112.62708403,102.04,101.94,78.5562903]
[1646241676013,14.72,102.01,101.94,78.5562903]
[1646241676212,106.20608403,102.04,101.94,78.5562903]
[1646241676413,34.3034059,102.04,101.94,78.5562903]
[1646241677414,30.3834059,102.04,101.94,78.5562903]
[1646241677813,25.3834059,102.04,101.94,78.5562903]
[1646241678014,14.7179,102.03,101.94,78.5562903]
[1646241678615,3.922,102.02,101.94,78.5562903]
[1646241683819,14.7179,102.03,101.94,78.5562903]
[1646241683820,18.6399,102.03,101.94,78.5562903]
[1646241684020,14.7179,102.03,101.94,78.5562903]
[1646241686320,14.7179,102.03,101.94,24.5605]
[1646241686520,0.25619524,102.01,101.94,24.5605]
[1646241686821,1.7015059,102.02,101.94,24.5605]
[1646241687023,1.7015059,102.01,101.94,24.5605]
[1646241687623,14.7214,102.0,101.94,24.5605]
[1646241687826,31.6331,102.02,101.94,24.5605]
[1646241688723,46.5433,102.02,101.94,24.5605]
[1646241689122,61.2627,102.02,101.94,24.5605]
[1646241690822,14.7201,102.01,101.94,24.5605]
[1646241692624,14.7215,102.0,101.94,24.5605]
[1646241694725,14.7215,102.0,101.94,24.3105]
[1646241697229,43.3527,102.02,101.94,24.5605]
[1646241697628,39.4307,102.02,101.94,24.5605]
[1646241698950,14.72,102.01,101.94,24.5605]
[1646241699151,24.7111,102.02,101.94,24.5605]
[1646241699351,26.41246457,102.02,101.94,24.5605]
[1646241699553,26.41246457,102.02,101.94,24.3105]
[1646241699752,26.41246457,102.02,101.93,77.624]
[1646241699753,3.922,102.01,101.93,77.624]
[1646241700154,5.62336457,102.01,101.93,77.624]
[1646241700353,14.7215,102.0,101.93,77.624]
[1646241702156,16.42286457,102.0,101.93,77.624]
[1646241702955,0.36885767,101.99,101.9,28.7816]
[1646241703155,0.36885767,101.99,101.9,3.922]
[1646241703156,3.923,101.98,101.9,3.922]
[1646241703354,0.27784428,101.97,101.9,3.922]
[1646241703556,24.93564337,101.97,101.9,3.922]
[1646241703758,26.68891531,101.97,101.9,3.922]
[1646241703955,3.0,101.96,101.9,3.922]
[1646241704155,0.27784428,101.95,101.9,3.922]
[1646241704362,26.35916366,101.96,101.9,3.922]
[1646241704557,1.70136457,101.95,101.9,3.922]
[1646241705156,14.7302,101.94,101.9,3.922]
[1646241705958,1.70136457,101.95,101.9,3.922]
[1646241706164,14.7331,101.92,101.83,24.9874]
[1646241706367,1.67444775,101.93,101.81,102.2163]
[1646241706560,31.35916366,101.91,101.79,5.0]
[1646241706759,26.9575,101.9,101.79,5.0]
[1646241706966,63.34529909,101.9,101.79,61.07536727]
[1646241707161,24.65779909,101.89,101.79,61.07536727]
[1646241707358,14.7407,101.87,101.79,5.0]
[1646241707561,15.658,101.88,101.76,102.8527]
[1646241707761,24.65779909,101.87,101.76,78.915]
[1646241707960,1.70136457,101.86,101.76,78.915]
[1646241708160,13.43136457,101.86,101.76,78.915]
[1646241708360,47.17228254,101.86,101.76,78.915]
[1646241708561,1.70136457,101.85,101.76,78.915]
[1646241708762,14.748,101.82,101.76,78.915]
[1646241708976,12.05600407,101.84,101.7,102.4049]
[1646241709162,1.70136457,101.81,101.7,102.4049]
[1646241709362,1.70136457,101.81,101.7,107.4049]
[1646241709562,3.931,101.8,101.7,106.9049]
[1646241709762,3.931,101.8,101.7,128.64582924]
[1646241709962,3.931,101.8,101.7,123.64582924]
[1646241710364,14.7549,101.77,101.7,123.64582924]
[1646241711162,53.1139,101.8,101.7,123.64582924]
[1646241711363,14.7533,101.78,101.7,123.64582924]
[1646241711569,3.931,101.8,101.7,123.64582924]
[1646241711763,0.0098,101.82,101.71,2.54904003]
[1646241711962,24.89759261,101.92,101.73,158.70084291]
[1646241712163,24.6509,101.91,101.75,100.0044251]
[1646241712363,24.6509,101.91,101.76,42.6833786]
[1646241712565,14.7371,101.89,101.77,77.6953]
[1646241712764,14.7371,101.89,101.78,84.34808619]
[1646241712964,14.7371,101.89,101.78,155.86348481]
[1646241713164,14.7371,101.89,101.79,2.54904003]
[1646241713364,14.7371,101.89,101.79,128.7466114]
[1646241715167,14.7371,101.89,101.8,14.7377]
[1646241715370,3.927,101.9,101.8,14.7377]
[1646241715371,3.927,101.9,101.8,56.59891278]
[1646241715568,3.927,101.9,101.81,2.54904003]
[1646241715868,24.6509,101.91,101.82,58.55616398]
[1646241716068,5.0,101.92,101.82,58.80616398]
[1646241716672,5.0,101.92,101.82,107.75393596]
[1646241717070,14.733,101.92,101.82,122.48743596]
[1646241717473,14.733,101.92,101.82,134.21743596]
[1646241717772,23.5282,101.94,101.83,3.926]
[1646241718071,23.5282,101.94,101.84,11.73]
[1646241718272,23.5282,101.94,101.84,58.37873195]
[1646241718471,23.5282,101.94,101.84,60.92777198]
[1646241718671,19.9233,101.97,101.85,2.54904003]
[1646241718871,3.924,101.96,101.86,54.47053514]
[1646241719071,18.6522,101.96,101.86,69.44833514]
[1646241719472,14.7282,101.96,101.86,69.44833514]
[1646241720575,42.206,101.98,101.86,71.99737517]
[1646241720775,56.835,101.98,101.86,83.72737517]
[1646241720973,47.1094,101.98,101.86,83.72737517]
[1646241722474,47.1094,101.98,101.86,71.99737517]
[1646241722674,48.59923593,101.98,101.85,3.924]
[1646241722875,0.25097743,101.96,101.84,80.96884003]
[1646241723079,15.654,101.95,101.84,78.4198]
[1646241723776,14.7347,101.91,101.85,58.19412529]
[1646241723976,49.116,101.94,101.85,58.19412529]
[1646241724177,3.924,101.95,101.85,58.44412529]
[1646241724379,5.0,101.96,101.85,58.44412529]
[1646241724576,53.8394,101.98,101.85,58.44412529]
[1646241725377,58.8394,101.98,101.85,58.44412529]
[1646241726178,58.8394,101.98,101.85,73.17472529]
[1646241726382,44.2104,101.98,101.86,3.924]
[1646241726677,35.2864,101.98,101.86,4.174]
[1646241726879,35.2864,101.98,101.87,2.54904003]
[1646241727077,23.5564,101.98,101.87,173.31301686]
[1646241727577,23.5564,101.98,101.88,2.54904003]
[1646241727778,23.5564,101.98,101.89,53.40052493]
[1646241727981,23.5564,101.98,101.89,68.37452493]
[1646241732683,23.5564,101.98,101.89,0.25]
[1646241732883,23.5564,101.98,101.87,37.664]
[1646241733085,5.0,101.97,101.87,37.664]
[1646241733285,5.0,101.97,101.87,40.21304003]
[1646241733486,0.22926231,101.96,101.87,40.21304003]
[1646241733689,3.924,101.97,101.87,91.38349324]
[1646241734287,3.924,101.97,101.87,91.13349324]
[1646241734485,8.924,101.97,101.87,91.13349324]
[1646241734688,3.924,101.97,101.87,91.13349324]
[1646241735087,14.7275,101.96,101.87,91.13349324]
[1646241735686,14.7275,101.96,101.87,91.38349324]
[1646241739204,38.2821,101.98,101.87,189.40349324]
[1646241740109,38.2821,101.98,101.87,201.13349324]
[1646241740707,38.2821,101.98,101.87,259.80349324]
[1646241740910,38.2821,101.98,101.87,261.98621666]
[1646241741910,38.2821,101.98,101.87,163.96621666]
[1646241742210,14.7258,101.97,101.87,163.96621666]
[1646241743108,14.7258,101.97,101.87,261.98621666]
[1646241743611,14.7258,101.97,101.87,163.96621666]
[1646241744610,14.7258,101.97,101.87,261.98621666]
[1646241745110,27.4804,101.98,101.87,261.98621666]
[1646241746212,27.4804,101.98,101.87,284.87951666]
[1646241746414,42.2048,101.98,101.87,186.85951666]
[1646241746613,42.2048,101.98,101.87,284.87951666]
[1646241747014,43.55299261,101.98,101.87,284.87951666]
[1646241747714,19.99659261,101.98,101.87,284.87951666]
[1646241748315,37.902,101.99,101.87,284.87951666]
[1646241748316,5.27219261,101.99,101.89,156.69]
[1646241748515,1.34819261,102.0,101.91,98.02]
[1646241748716,5.27119261,102.01,101.92,46.20876164]
[1646241748917,5.27119261,102.01,101.92,46.45876164]
[1646241749116,1.34819261,102.01,101.92,144.47876164]
[1646241749317,30.01009261,102.02,101.92,158.75780167]
[1646241749917,30.01009261,102.02,101.93,14.7175]
[1646241750116,30.01009261,102.02,101.93,14.9675]
[1646241750519,26.08809261,102.02,101.93,14.9675]
[1646241751419,30.01009261,102.02,101.93,14.9675]
[1646241752018,14.72,102.01,101.93,14.9675]
[1646241755821,26.08809261,102.02,101.93,14.9675]
[1646241757824,40.80639261,102.02,101.93,14.9675]
[1646241758425,39.4582,102.02,101.93,14.9675]
[1646241758623,24.7399,102.02,101.93,17.51654003]
[1646241762427,28.6619,102.02,101.93,0.25]
[1646241762627,30.01009261,102.02,101.92,23.3083]
[1646241763229,30.01009261,102.02,101.92,23.0583]
[1646241764028,14.7214,102.0,101.92,23.0583]
[1646241764730,14.7214,102.0,101.92,25.85734003]
[1646241766531,14.7214,102.0,101.92,40.57684003]
[1646241768933,23.9748,102.01,101.92,40.57684003]
[1646241769636,25.32299261,102.01,101.92,40.57684003]
[1646241769835,39.80139261,102.01,101.92,40.57684003]
[1646241771140,54.52129261,102.01,101.92,40.57684003]
[1646241771738,58.44329261,102.01,101.92,40.57684003]
[1646241773040,43.96489261,102.01,101.92,40.57684003]
[1646241773244,40.04289261,102.01,101.92,40.57684003]
[1646241774642,38.6947,102.01,101.92,40.57684003]
[1646241776046,40.04289261,102.01,101.92,40.57684003]
[1646241776745,54.81849261,102.01,101.92,40.57684003]
[1646241776948,58.74049261,102.01,101.92,40.57684003]
[1646241777546,1.34819261,102.0,101.92,40.57684003]
[1646241777747,1.56669316,102.0,101.92,40.57684003]
[1646241778848,1.34819261,102.0,101.92,40.57684003]
[1646241780249,16.06949261,102.0,101.92,40.57684003]
[1646241781772,16.06949261,102.0,101.92,2.54904003]
[1646241781969,14.7262,101.97,101.9,8.922]
[1646241782168,0.47366068,101.98,101.9,5.0]
[1646241782368,1.7077628,101.97,101.85,23.5944]
[1646241782569,0.47366068,101.96,101.85,23.5944]
[1646241782768,4.39766068,101.96,101.85,83.82024345]
[1646241783068,14.7296,101.95,101.85,98.54984345]
[1646241783868,14.7296,101.95,101.85,103.54984345]
[1646241784070,14.7296,101.95,101.85,103.79984345]
[1646241784272,14.7296,101.95,101.85,98.79984345]
[1646241784868,46.7537,101.96,101.85,98.79984345]
[1646241785069,46.7537,101.96,101.85,255.48984345]
[1646241785270,46.7537,101.96,101.85,267.21984345]
[1646241785469,46.7537,101.96,101.85,310.27873527]
[1646241785669,46.7537,101.96,101.85,323.75669701]
[1646241785869,46.7537,101.96,101.85,303.23812329]
[1646241786269,46.7537,101.96,101.86,5.0]
[1646241786472,46.7537,101.96,101.86,0.25]
[1646241786670,46.7537,101.96,101.86,5.25]
[1646241787372,46.7537,101.96,101.86,0.25]
[1646241787572,46.7537,101.96,101.85,269.76888348]
[1646241788072,46.7537,101.96,101.85,310.27873527]
[1646241789476,46.7537,101.96,101.85,274.76888348]
[1646241789875,46.7537,101.96,101.85,272.21984345]
[1646241790382,61.4808,101.96,101.85,115.27984345]
[1646241790574,48.4614628,101.96,101.85,5.0]
[1646241790776,4.21908983,101.95,101.85,5.0]
[1646241790974,4.21908983,101.95,101.83,38.6545]
[1646241791176,1.7077628,101.94,101.83,23.9225]
[1646241791379,3.924,101.93,101.83,23.9225]
[1646241791778,5.6317628,101.93,101.83,23.9225]
[1646241792078,14.7342,101.91,101.83,24.1725]
[1646241792677,14.7342,101.91,101.83,84.95121252]
[1646241792877,30.4713628,101.93,101.83,84.95121252]
[1646241793077,38.496,101.93,101.83,99.68411252]
[1646241793879,23.7636,101.93,101.83,99.68411252]
[1646241795179,14.7329,101.92,101.83,99.68411252]
[1646241796379,27.6896,101.93,101.83,99.68411252]
[1646241796581,14.7343,101.91,101.83,99.68411252]
[1646241796979,29.3973628,101.93,101.83,24.1725]
[1646241797185,29.3973628,101.93,101.83,0.25]
[1646241797483,30.4713628,101.93,101.82,24.8992]
[1646241797682,3.926,101.92,101.82,24.6492]
[1646241797883,8.926,101.92,101.83,44.70322092]
[1646241798084,14.7374,101.89,101.83,44.70322092]
[1646241798482,3.926,101.9,101.83,44.70322092]
[1646241798683,22.6293,101.92,101.83,44.70322092]
[1646241799085,22.6293,101.92,101.83,44.95322092]
[1646241799989,3.926,101.91,101.83,44.95322092]
[1646241800186,18.6616,101.91,101.83,44.95322092]
[1646241800686,18.6616,101.91,101.83,0.25]
[1646241800888,41.9451,101.91,101.82,24.8992]
[1646241801688,41.9451,101.91,101.83,59.63062564]
[1646241801887,41.9451,101.91,101.83,59.88062564]
[1646241802590,41.9451,101.91,101.83,59.63062564]
[1646241803691,41.9451,101.91,101.82,39.384]
[1646241803994,41.9451,101.91,101.82,39.634]
[1646241804799,41.9451,101.91,101.83,60.02600545]
[1646241805198,23.2835,101.91,101.83,75.00950545]
[1646241808116,23.2835,101.91,101.82,24.6492]
[1646241808816,27.2095,101.91,101.82,24.6492]
[1646241809018,14.7373,101.89,101.82,71.49325152]
[1646241811119,14.7373,101.89,101.82,24.6492]
[1646241811318,14.7373,101.89,101.81,91.867]
[1646241811522,23.2835,101.91,101.81,92.117]
[1646241811719,38.0188,101.91,101.81,92.117]
[1646241811917,23.2835,101.91,101.82,55.16903483]
[1646241812117,23.2835,101.91,101.82,55.41903483]
[1646241812719,14.7358,101.9,101.82,70.15413483]
[1646241816230,27.2095,101.91,101.82,70.15413483]
[1646241816430,23.2835,101.91,101.82,70.15413483]
[1646241816629,23.2835,101.91,101.82,92.79803483]
[1646241816830,23.2835,101.91,101.84,14.7323]
[1646241817029,23.2835,101.91,101.84,14.9823]
[1646241817832,23.2835,101.91,101.84,14.7323]
[1646241818134,23.2835,101.91,101.82,77.81293483]
[1646241818331,28.9144261,101.91,101.82,77.81293483]
[1646241819236,14.7372,101.89,101.82,77.81293483]
[1646241820034,14.7372,101.89,101.81,77.1314]
[1646241820234,14.7389,101.88,101.81,77.1314]
[1646241820436,14.7389,101.88,101.8,38.5625]
[1646241820637,14.7389,101.88,101.8,23.8253]
[1646241821035,0.24495021,101.9,101.8,56.83026774]
[1646241821236,80.65520611,101.91,101.8,56.83026774]
[1646241821436,14.7401,101.87,101.8,56.83026774]
[1646241828151,14.7401,101.87,101.78,22.5547]
[1646241828352,0.19810506,101.86,101.78,22.5547]
[1646241828654,14.7434,101.85,101.78,22.5547]
[1646241828850,14.7434,101.85,101.76,101.9598]
[1646241829051,6.529,101.85,101.76,77.9259]
[1646241829251,1.7049261,101.84,101.76,77.9259]
[1646241829452,1.7049261,101.84,101.73,46.8991]
[1646241829651,14.7487,101.81,101.73,46.8991]
[1646241829851,14.7487,101.81,101.73,22.7348]
[1646241830456,60.7387,101.83,101.73,75.95266533]
[1646241830854,62.4436261,101.83,101.73,75.95266533]
[1646241831956,14.7502,101.8,101.73,22.7348]
[1646241833157,22.0822,101.8,101.73,22.7348]
[1646241834574,22.0822,101.8,101.73,22.9848]
[1646241834775,14.7502,101.8,101.73,22.9848]
[1646241838979,52.9387,101.83,101.73,37.7328]
[1646241839278,49.0087,101.83,101.73,37.7328]
[1646241839878,49.0087,101.83,101.73,22.9848]
[1646241840080,49.0087,101.83,101.73,22.7348]
[1646241840278,3.93,101.82,101.73,22.7348]
[1646241840683,3.93,101.82,101.71,98.396]
[1646241840684,13.4349261,101.82,101.67,15.66]
[1646241840881,23.96857487,101.81,101.68,23.9599]
[1646241841080,25.11136939,101.81,101.68,28.9599]
[1646241841288,46.07309338,101.8,101.68,86.07827408]
[1646241841480,70.77569338,101.8,101.68,86.07827408]
[1646241841881,1.7049261,101.79,101.68,86.07827408]
[1646241842080,14.7549,101.77,101.68,86.32827408]
[1646241842281,14.7549,101.77,101.68,81.32827408]
[1646241843081,14.7549,101.77,101.68,23.9599]
[1646241843586,28.1898261,101.77,101.68,23.9599]
[1646241843786,32.1218261,101.77,101.68,23.9599]
[1646241844181,32.1218261,101.77,101.68,73.09234585]
[1646241844785,46.6344261,101.77,101.68,73.09234585]
[1646241845183,44.9295,101.77,101.68,73.09234585]
[1646241845882,18.6869,101.77,101.68,73.09234585]
[1646241846082,23.6843,101.79,101.68,73.34234585]
[1646241846285,38.5551,101.79,101.68,88.09744585]
[1646241846683,23.8028,101.79,101.68,88.09744585]
[1646241846884,25.5077261,101.79,101.68,88.09744585]
[1646241847084,23.8028,101.79,101.68,88.09744585]
[1646241847484,47.532,101.79,101.68,88.09744585]
[1646241848084,14.7535,101.78,101.69,6.0]
[1646241848285,14.7535,101.78,101.7,14.7525]
[1646241848485,14.7535,101.78,101.7,15.0025]
[1646241849791,27.6612,101.79,101.7,15.0025]
[1646241850387,23.7292,101.79,101.7,15.0025]
[1646241852589,23.7292,101.79,101.71,6.0]
[1646241852788,23.7292,101.79,101.71,0.25]
[1646241852988,38.481,101.79,101.71,0.25]
[1646241853388,38.481,101.79,101.7,14.7525]
[1646241853588,42.5857,101.79,101.7,15.0025]
[1646241855092,14.7536,101.78,101.7,15.0025]
[1646241857593,14.7549,101.77,101.7,0.25]
[1646241857792,14.7549,101.77,101.68,88.09694585]
[1646241858193,23.6257,101.78,101.68,186.39694585]
[1646241858594,23.7292,101.79,101.68,186.39694585]
[1646241858795,23.7292,101.79,101.68,198.12694585]
[1646241858993,38.4817,101.79,101.68,198.12694585]
[1646241859194,38.4817,101.79,101.68,256.79694585]
[1646241859394,3.931,101.81,101.68,258.65271978]
[1646241859596,38.7399,101.82,101.7,158.94462578]
[1646241859795,66.7943,101.82,101.72,14.747]
[1646241860094,81.5418,101.82,101.73,53.49905359]
[1646241860294,81.5418,101.82,101.73,53.74905359]
[1646241860794,42.8019,101.82,101.73,53.74905359]
[1646241860996,42.8019,101.82,101.73,68.49645359]
[1646241861499,3.93,101.82,101.74,98.3]
[1646241861698,37.3747,101.85,101.74,110.28]
[1646241861898,46.1684,101.85,101.75,121.3475]
[1646241862099,3.928,101.84,101.77,98.3]
[1646241862297,3.928,101.86,101.78,157.78715952]
[1646241862497,3.928,101.86,101.78,59.73715952]
[1646241862700,38.2482,101.88,101.78,59.73715952]
[1646241863198,14.74,101.87,101.78,59.73715952]
[1646241863397,62.92578317,101.88,101.79,98.3]
[1646241863599,46.25514299,101.88,101.79,123.398]
[1646241863803,23.2822,101.88,101.79,25.098]
[1646241864801,47.95978317,101.88,101.79,25.098]
[1646241865100,47.95978317,101.88,101.79,24.848]
[1646241866102,14.7401,101.87,101.79,24.848]
[1646241866304,14.7401,101.87,101.78,59.48715952]
[1646241866502,24.67758317,101.86,101.78,59.73715952]
[1646241866904,1.70464018,101.85,101.78,59.73715952]
[1646241868121,16.44804018,101.85,101.78,59.73715952]
[1646241868324,14.7434,101.85,101.78,59.73715952]
[1646241869127,24.3345,101.86,101.78,74.47715952]
[1646241869325,44.90891945,101.89,101.78,74.47715952]
[1646241869530,35.15733628,101.89,101.79,23.4839]
[1646241869727,35.15733628,101.89,101.79,180.7039]
[1646241869930,11.30333628,101.89,101.79,180.7039]
[1646241870125,3.927,101.9,101.81,156.97]
[1646241870332,3.927,101.91,101.81,157.22]
[1646241870526,3.927,101.91,101.82,152.80720281]
[1646241870726,64.86134018,101.93,101.82,153.05720281]
[1646241870727,3.926,101.92,101.82,153.05720281]
[1646241870927,3.926,101.92,101.82,54.75720281]
[1646241871332,14.7344,101.91,101.82,69.48900281]
[1646241871728,16.43904018,101.91,101.82,69.48900281]
[1646241872229,3.926,101.9,101.82,69.48900281]
[1646241873728,20.36634018,101.9,101.82,69.48900281]
[1646241873932,16.44034018,101.9,101.82,69.48900281]
[1646241877632,14.9248,101.91,101.82,69.48900281]
[1646241878031,39.5844,101.91,101.82,69.48900281]
[1646241878531,24.6596,101.91,101.82,167.78900281]
[1646241878733,24.6596,101.91,101.82,171.71500281]
[1646241878931,24.5702,101.93,101.82,171.71500281]
[1646241879133,48.1527,101.93,101.84,14.7302]
[1646241879333,48.1527,101.93,101.84,14.9802]
[1646241880135,62.884,101.93,101.84,14.9802]
[1646241880335,85.85694299,101.93,101.84,14.9802]
[1646241880735,89.78094299,101.93,101.84,14.9802]
[1646241880935,85.85694299,101.93,101.84,14.9802]
[1646241881836,87.56820222,101.93,101.84,14.9802]
[1646241882036,14.7331,101.92,101.84,14.7302]
[1646241882237,72.83690222,101.93,101.83,24.6567]
[1646241882439,24.68420222,101.91,101.82,54.50720281]
[1646241882838,1.71125923,101.9,101.82,54.50720281]
[1646241884044,14.7374,101.89,101.82,54.50720281]
[1646241884452,14.7374,101.89,101.8,60.538]